[Event "*** Titled Tuesday Blitz"]
[Site "Chess.com"]
[Date "2020.05.26"]
[Round "3"]
[White "Herracek"]
[Black "Belka1989"]
[Result "1-0"]
[WhiteElo "2575"]
[BlackElo "2370"]
[TimeControl "180+1"]
[EndTime "10:27:38 PDT"]
[Termination "Herracek won on time"]

1. c4 {[%clk 0:03:00.9]} 1... e5 {[%clk 0:03:00]} 2. g3 {[%clk 0:03:00.8]} 2...
Nf6 {[%clk 0:03:00.2]} 3. Bg2 {[%clk 0:03:01.3]} 3... c6 {[%clk 0:03:00.7]} 4.
d4 {[%clk 0:03:00.5]} 4... exd4 {[%clk 0:03:01.5]} 5. Nf3 {[%clk 0:03:00.5]}
5... d5 {[%clk 0:03:02.4]} 6. Qxd4 {[%clk 0:03:00]} 6... dxc4 {[%clk 0:02:59.6]}
7. Qxd8+ {[%clk 0:02:59.7]} 7... Kxd8 {[%clk 0:03:00]} 8. O-O {[%clk 0:02:58.6]}
8... Bd6 {[%clk 0:02:57]} 9. Rd1 {[%clk 0:02:58.5]} 9... Kc7 {[%clk 0:02:55.2]}
10. Nbd2 {[%clk 0:02:49.4]} 10... Be6 {[%clk 0:02:31]} 11. Ng5 {[%clk
0:02:49.4]} 11... b5 {[%clk 0:01:32.3]} 12. a4 {[%clk 0:02:47.4]} 12... c3
{[%clk 0:01:11.9]} 13. bxc3 {[%clk 0:02:44.7]} 13... Nd5 {[%clk 0:01:09.1]} 14.
Nde4 {[%clk 0:02:34.9]} 14... Be5 {[%clk 0:00:57.1]} 15. axb5 {[%clk 0:02:33.1]}
15... cxb5 {[%clk 0:00:48.2]} 16. Nc5 {[%clk 0:02:25.9]} 16... Nxc3 {[%clk
0:00:24.4]} 17. Ngxe6+ {[%clk 0:02:08.2]} 17... fxe6 {[%clk 0:00:22.1]} 18.
Nxe6+ {[%clk 0:02:09.1]} 18... Kc8 {[%clk 0:00:11.7]} 19. Rd2 {[%clk 0:01:50.5]}
19... Re8 {[%clk 0:00:08.3]} 20. Bxa8 {[%clk 0:01:40.6]} 20... Rxe6 {[%clk
0:00:07.6]} 21. Bb2 {[%clk 0:01:40.9]} 21... b4 {[%clk 0:00:05.5]} 22. Rxa7
{[%clk 0:01:40]} 22... Nc6 {[%clk 0:00:03.7]} 23. Ra6 {[%clk 0:01:28.6]} 23...
Nd4 {[%clk 0:00:03.6]} 24. Rxe6 {[%clk 0:01:27.1]} 24... Nxe6 {[%clk 0:00:04.5]}
25. e3 {[%clk 0:01:19.9]} 25... Nc5 {[%clk 0:00:04.6]} 26. f4 {[%clk 0:01:16.1]}
26... Bf6 {[%clk 0:00:03.4]} 27. Kf1 {[%clk 0:01:14.5]} 27... Nb3 {[%clk
0:00:03.6]} 28. Rd6 {[%clk 0:01:07]} 28... Na5 {[%clk 0:00:01.9]} 29. e4 {[%clk
0:00:54.2]} 29... Kb8 {[%clk 0:00:02.3]} 30. e5 {[%clk 0:00:49.9]} 30... Bxe5
{[%clk 0:00:01.7]} 31. fxe5 {[%clk 0:00:49.3]} 31... Nc4 {[%clk 0:00:01.7]} 32.
Bxc3 {[%clk 0:00:49.7]} 32... Nxd6 {[%clk 0:00:01.2]} 33. exd6 {[%clk
0:00:46.5]} 33... bxc3 {[%clk 0:00:02.1]} 34. Be4 {[%clk 0:00:46.1]} 34... Kc8
{[%clk 0:00:03]} 35. Bxh7 {[%clk 0:00:42.3]} 35... Kd7 {[%clk 0:00:02.7]} 36.
Ke2 {[%clk 0:00:42.7]} 36... Kxd6 {[%clk 0:00:03.6]} 37. Kd3 {[%clk 0:00:43.1]}
37... Ke5 {[%clk 0:00:04.5]} 38. h4 {[%clk 0:00:36.4]} 38... Kf6 {[%clk
0:00:02.4]} 39. Kxc3 {[%clk 0:00:35.9]} 39... g6 {[%clk 0:00:01.9]} 40. Kd3
{[%clk 0:00:35.9]} 1-0

[Event "*** Titled Tuesday Blitz"]
[Site "Chess.com"]
[Date "2020.05.26"]
[Round "3"]
[White "albano87"]
[Black "Oneofmyturns"]
[Result "1-0"]
[WhiteElo "2370"]
[BlackElo "2642"]
[TimeControl "180+1"]
[EndTime "10:27:39 PDT"]
[Termination "albano87 won by resignation"]

1. d4 {[%clk 0:03:00.9]} 1... Nf6 {[%clk 0:02:58.5]} 2. Nf3 {[%clk 0:02:59]}
2... d5 {[%clk 0:02:57.5]} 3. g3 {[%clk 0:02:58.3]} 3... c5 {[%clk 0:02:56]} 4.
Bg2 {[%clk 0:02:53.7]} 4... cxd4 {[%clk 0:02:55.3]} 5. O-O {[%clk 0:02:51.6]}
5... e6 {[%clk 0:02:50.7]} 6. Nxd4 {[%clk 0:02:49.4]} 6... e5 {[%clk 0:02:51.2]}
7. Nb3 {[%clk 0:02:46.7]} 7... Be6 {[%clk 0:02:46.7]} 8. e4 {[%clk 0:02:40.2]}
8... Nc6 {[%clk 0:02:25.2]} 9. exd5 {[%clk 0:02:37.6]} 9... Bxd5 {[%clk
0:02:26.1]} 10. Bg5 {[%clk 0:02:31.4]} 10... Bxg2 {[%clk 0:02:24.3]} 11. Kxg2
{[%clk 0:02:31.5]} 11... Be7 {[%clk 0:02:21.6]} 12. Nc3 {[%clk 0:02:25.3]} 12...
O-O {[%clk 0:02:03.2]} 13. Qf3 {[%clk 0:02:18.4]} 13... e4 {[%clk 0:01:35.3]}
14. Qe2 {[%clk 0:02:09]} 14... Nd4 {[%clk 0:01:30.6]} 15. Nxd4 {[%clk
0:02:03.9]} 15... Qxd4 {[%clk 0:01:31.5]} 16. Rad1 {[%clk 0:01:57.5]} 16... Qb6
{[%clk 0:01:30.5]} 17. Qb5 {[%clk 0:01:49.1]} 17... Qxb5 {[%clk 0:01:25.2]} 18.
Nxb5 {[%clk 0:01:50]} 18... h6 {[%clk 0:01:26]} 19. Bxf6 {[%clk 0:01:41.5]}
19... Bxf6 {[%clk 0:01:26.9]} 20. c3 {[%clk 0:01:36.9]} 20... Be5 {[%clk
0:01:02.2]} 21. Rd5 {[%clk 0:01:34.6]} 21... Rfe8 {[%clk 0:00:59.2]} 22. Re1
{[%clk 0:01:31.2]} 22... a6 {[%clk 0:00:58.6]} 23. Rxe4 {[%clk 0:01:22.7]} 23...
Bxg3 {[%clk 0:00:57.4]} 24. Rxe8+ {[%clk 0:01:16.7]} 24... Rxe8 {[%clk
0:00:58.3]} 25. hxg3 {[%clk 0:01:14.5]} 25... axb5 {[%clk 0:00:58.7]} 26. Rxb5
{[%clk 0:01:13]} 26... Re7 {[%clk 0:00:59.4]} 27. a4 {[%clk 0:01:08.9]} 27... g6
{[%clk 0:00:59.2]} 28. a5 {[%clk 0:01:07.7]} 28... h5 {[%clk 0:00:59.2]} 29. b4
{[%clk 0:01:04.6]} 29... Kf8 {[%clk 0:00:53.5]} 30. Kf3 {[%clk 0:01:04.5]} 30...
Rd7 {[%clk 0:00:35.6]} 31. c4 {[%clk 0:00:59.9]} 31... Kg7 {[%clk 0:00:32.2]}
32. Rb6 {[%clk 0:00:48.1]} 32... g5 {[%clk 0:00:31.3]} 33. b5 {[%clk 0:00:43.9]}
33... Rd3+ {[%clk 0:00:26.2]} 34. Kg2 {[%clk 0:00:40.4]} 34... Ra3 {[%clk
0:00:26.3]} 35. Rxb7 {[%clk 0:00:36]} 35... Rxa5 {[%clk 0:00:25.9]} 36. c5
{[%clk 0:00:36.9]} 36... Ra2 {[%clk 0:00:22.2]} 37. c6 {[%clk 0:00:34.3]} 37...
Rc2 {[%clk 0:00:20]} 38. c7 {[%clk 0:00:26.2]} 38... h4 {[%clk 0:00:18.8]} 39.
gxh4 {[%clk 0:00:23]} 39... gxh4 {[%clk 0:00:19.7]} 40. b6 {[%clk 0:00:19.5]}
1-0

[Event "*** Titled Tuesday Blitz"]
[Site "Chess.com"]
[Date "2020.05.26"]
[Round "3"]
[White "JoySpaceman"]
[Black "chito89"]
[Result "0-1"]
[WhiteElo "2505"]
[BlackElo "2738"]
[TimeControl "180+1"]
[EndTime "10:27:40 PDT"]
[Termination "chito89 won on time"]

1. d4 {[%clk 0:03:00.9]} 1... Nf6 {[%clk 0:02:48.9]} 2. Nc3 {[%clk 0:03:00.2]}
2... g6 {[%clk 0:02:31.2]} 3. e4 {[%clk 0:02:58.6]} 3... d6 {[%clk 0:02:31.4]}
4. Bf4 {[%clk 0:02:47.9]} 4... c6 {[%clk 0:02:27.4]} 5. Qd2 {[%clk 0:02:42.1]}
5... Qa5 {[%clk 0:02:07.9]} 6. Nf3 {[%clk 0:02:14.4]} 6... Bg7 {[%clk 0:01:41]}
7. Bd3 {[%clk 0:02:06.5]} 7... Bg4 {[%clk 0:01:30.7]} 8. O-O-O {[%clk 0:01:50]}
8... Bxf3 {[%clk 0:01:23.5]} 9. gxf3 {[%clk 0:01:49.9]} 9... Nbd7 {[%clk
0:01:23.8]} 10. Rhe1 {[%clk 0:01:31]} 10... e5 {[%clk 0:01:19.8]} 11. dxe5
{[%clk 0:01:09]} 11... dxe5 {[%clk 0:01:17.5]} 12. Bg5 {[%clk 0:00:55.6]} 12...
h6 {[%clk 0:01:06.3]} 13. Be3 {[%clk 0:00:52.7]} 13... O-O-O {[%clk 0:01:02.3]}
14. Kb1 {[%clk 0:00:52.1]} 14... Nh5 {[%clk 0:00:57.8]} 15. Bf1 {[%clk
0:00:30.5]} 15... Nb6 {[%clk 0:00:51.1]} 16. Bh3+ {[%clk 0:00:30.7]} 16... Kc7
{[%clk 0:00:43.8]} 17. Qe2 {[%clk 0:00:31.3]} 17... Nf4 {[%clk 0:00:41.9]} 18.
Bxf4 {[%clk 0:00:24.3]} 18... exf4 {[%clk 0:00:42.8]} 19. e5 {[%clk 0:00:23.3]}
19... Rxd1+ {[%clk 0:00:33.3]} 20. Nxd1 {[%clk 0:00:18.5]} 20... Nc4 {[%clk
0:00:28]} 21. e6 {[%clk 0:00:14.5]} 21... Qb4 {[%clk 0:00:20]} 22. c3 {[%clk
0:00:11.6]} 22... Bxc3 {[%clk 0:00:19.2]} 23. Nxc3 {[%clk 0:00:09.1]} 23... Rd8
{[%clk 0:00:16.9]} 24. Rd1 {[%clk 0:00:08.1]} 24... Re8 {[%clk 0:00:10.2]} 25.
Rd7+ {[%clk 0:00:04.3]} 25... Kb8 {[%clk 0:00:10.6]} 26. e7 {[%clk 0:00:03]}
26... Nd6 {[%clk 0:00:05.4]} 27. Rd8+ {[%clk 0:00:01.1]} 27... Kc7 {[%clk
0:00:05.9]} 0-1

[Event "*** Titled Tuesday Blitz"]
[Site "Chess.com"]
[Date "2020.05.26"]
[Round "3"]
[White "MaxLeto"]
[Black "talaicito"]
[Result "1-0"]
[WhiteElo "2332"]
[BlackElo "2157"]
[TimeControl "180+1"]
[EndTime "10:27:42 PDT"]
[Termination "MaxLeto won on time"]

1. g4 {[%clk 0:02:32.6]} 1... e5 {[%clk 0:02:56.6]} 2. Bg2 {[%clk 0:02:31.6]}
2... d5 {[%clk 0:02:56.9]} 3. c4 {[%clk 0:02:16]} 3... c6 {[%clk 0:02:45.3]} 4.
cxd5 {[%clk 0:02:08]} 4... cxd5 {[%clk 0:02:45.3]} 5. d3 {[%clk 0:02:04.4]} 5...
Nc6 {[%clk 0:02:39.5]} 6. g5 {[%clk 0:02:02.9]} 6... Nge7 {[%clk 0:02:33]} 7.
Nc3 {[%clk 0:01:59.9]} 7... Be6 {[%clk 0:02:31.6]} 8. h4 {[%clk 0:01:56.9]} 8...
Qd7 {[%clk 0:02:21.8]} 9. h5 {[%clk 0:01:56.3]} 9... Nf5 {[%clk 0:02:21]} 10.
Bd2 {[%clk 0:01:44.5]} 10... Be7 {[%clk 0:02:15.4]} 11. Qa4 {[%clk 0:01:39.1]}
11... f6 {[%clk 0:02:08.3]} 12. h6 {[%clk 0:01:36.8]} 12... fxg5 {[%clk
0:02:01.1]} 13. hxg7 {[%clk 0:01:36.5]} 13... Nxg7 {[%clk 0:02:00.8]} 14. Nf3
{[%clk 0:01:32.8]} 14... g4 {[%clk 0:01:54]} 15. Ng5 {[%clk 0:01:32.8]} 15...
Bxg5 {[%clk 0:01:40.4]} 16. Bxg5 {[%clk 0:01:33.7]} 16... Nd4 {[%clk 0:01:38.2]}
17. Qxd7+ {[%clk 0:01:20.3]} 17... Kxd7 {[%clk 0:01:39.1]} 18. Rc1 {[%clk
0:01:08.3]} 18... Rac8 {[%clk 0:01:04.6]} 19. Kd2 {[%clk 0:01:06.7]} 19... Ndf5
{[%clk 0:00:53.9]} 20. Nxd5 {[%clk 0:01:04.4]} 20... Bxd5 {[%clk 0:00:50.6]} 21.
Bxd5 {[%clk 0:01:05.3]} 21... Rxc1 {[%clk 0:00:45.7]} 22. Rxc1 {[%clk
0:01:06.2]} 22... b6 {[%clk 0:00:45.5]} 23. Bf6 {[%clk 0:01:04.6]} 23... h5
{[%clk 0:00:43.7]} 24. Bxe5 {[%clk 0:01:01.9]} 24... h4 {[%clk 0:00:42.7]} 25.
Rc7+ {[%clk 0:01:02.3]} 25... Kd8 {[%clk 0:00:38]} 26. Rxa7 {[%clk 0:01:01.6]}
26... Rh5 {[%clk 0:00:24]} 27. Bf7 {[%clk 0:00:53.9]} 27... g3 {[%clk
0:00:15.2]} 28. fxg3 {[%clk 0:00:42]} 28... h3 {[%clk 0:00:13.8]} 29. g4 {[%clk
0:00:41.3]} 29... h2 {[%clk 0:00:12.6]} 30. Bxh2 {[%clk 0:00:41.2]} 30... Rxh2
{[%clk 0:00:11.8]} 31. gxf5 {[%clk 0:00:41.4]} 31... Nxf5 {[%clk 0:00:11.9]} 32.
Be6 {[%clk 0:00:29.8]} 32... Nd4 {[%clk 0:00:11.2]} 33. Bg4 {[%clk 0:00:30.3]}
33... Rg2 {[%clk 0:00:10]} 34. Rd7+ {[%clk 0:00:29.5]} 34... Ke8 {[%clk
0:00:06.8]} 35. Rxd4 {[%clk 0:00:30.4]} 35... Ke7 {[%clk 0:00:06]} 36. a4 {[%clk
0:00:29.9]} 36... Kf6 {[%clk 0:00:05.4]} 37. b4 {[%clk 0:00:30]} 37... Ke5
{[%clk 0:00:05.7]} 38. Re4+ {[%clk 0:00:30.3]} 38... Kd5 {[%clk 0:00:05.3]} 39.
Bf3 {[%clk 0:00:30.6]} 39... Rf2 {[%clk 0:00:04]} 40. Rg4+ {[%clk 0:00:29.6]}
40... Kd6 {[%clk 0:00:03.3]} 41. d4 {[%clk 0:00:26.5]} 1-0

[Event "*** Titled Tuesday Blitz"]
[Site "Chess.com"]
[Date "2020.05.26"]
[Round "3"]
[White "oneshot007"]
[Black "Gloomy_Wanderer"]
[Result "1-0"]
[WhiteElo "2448"]
[BlackElo "2742"]
[TimeControl "180+1"]
[EndTime "10:27:43 PDT"]
[Termination "oneshot007 won by resignation"]

1. e4 {[%clk 0:03:00.9]} 1... c5 {[%clk 0:02:58.7]} 2. Nf3 {[%clk 0:02:58.9]}
2... a6 {[%clk 0:02:59]} 3. c3 {[%clk 0:02:49.7]} 3... d5 {[%clk 0:02:57.5]} 4.
exd5 {[%clk 0:02:45.4]} 4... Qxd5 {[%clk 0:02:58.4]} 5. d4 {[%clk 0:02:43.3]}
5... Bg4 {[%clk 0:02:58.4]} 6. Be2 {[%clk 0:02:40.1]} 6... Nf6 {[%clk 0:02:58]}
7. O-O {[%clk 0:02:36.2]} 7... e6 {[%clk 0:02:57.7]} 8. h3 {[%clk 0:02:32]} 8...
Bh5 {[%clk 0:02:57.4]} 9. Be3 {[%clk 0:01:59.6]} 9... cxd4 {[%clk 0:02:55.2]}
10. cxd4 {[%clk 0:01:55.8]} 10... Nc6 {[%clk 0:02:55.2]} 11. Nc3 {[%clk
0:01:55.4]} 11... Qd6 {[%clk 0:02:55.3]} 12. Re1 {[%clk 0:01:45.7]} 12... Be7
{[%clk 0:02:47.5]} 13. g4 {[%clk 0:01:15.7]} 13... Bg6 {[%clk 0:02:46]} 14. Ne5
{[%clk 0:01:16.1]} 14... O-O {[%clk 0:02:27.4]} 15. f4 {[%clk 0:01:09.2]} 15...
Rfd8 {[%clk 0:02:21.5]} 16. Bf3 {[%clk 0:00:46.5]} 16... Rac8 {[%clk 0:01:58.1]}
17. Bxc6 {[%clk 0:00:41.6]} 17... bxc6 {[%clk 0:01:59]} 18. Qf3 {[%clk
0:00:38.7]} 18... h6 {[%clk 0:01:11.3]} 19. Nxg6 {[%clk 0:00:34.4]} 19... fxg6
{[%clk 0:01:12.2]} 20. Bf2 {[%clk 0:00:32.3]} 20... Re8 {[%clk 0:01:06.7]} 21.
Re5 {[%clk 0:00:31.5]} 21... Qb4 {[%clk 0:01:05.6]} 22. Qe2 {[%clk 0:00:27.2]}
22... Bd6 {[%clk 0:01:03.1]} 23. Rxe6 {[%clk 0:00:25.5]} 23... Bxf4 {[%clk
0:01:03.2]} 24. Re1 {[%clk 0:00:22.9]} 24... Kh7 {[%clk 0:01:00]} 25. Qc2 {[%clk
0:00:18.2]} 25... Red8 {[%clk 0:00:46.8]} 26. Ne4 {[%clk 0:00:12]} 26... Bg5
{[%clk 0:00:34.6]} 27. a3 {[%clk 0:00:08.1]} 27... Qf8 {[%clk 0:00:33.6]} 28. h4
{[%clk 0:00:06.6]} 28... Nxe4 {[%clk 0:00:26.4]} 29. Qxe4 {[%clk 0:00:05.4]}
29... Bf6 {[%clk 0:00:26.4]} 30. g5 {[%clk 0:00:04.5]} 30... hxg5 {[%clk
0:00:23]} 31. hxg5 {[%clk 0:00:05.4]} 31... Bxd4 {[%clk 0:00:17.3]} 32. Qxg6+
{[%clk 0:00:05.4]} 32... Kg8 {[%clk 0:00:17.9]} 33. Bxd4 {[%clk 0:00:04.7]}
33... Rd7 {[%clk 0:00:14]} 34. Re8 {[%clk 0:00:04.8]} 1-0

[Event "*** Titled Tuesday Blitz"]
[Site "Chess.com"]
[Date "2020.05.26"]
[Round "3"]
[White "boasovietica"]
[Black "Chessmasterzt"]
[Result "1-0"]
[WhiteElo "2403"]
[BlackElo "2575"]
[TimeControl "180+1"]
[EndTime "10:27:45 PDT"]
[Termination "boasovietica won on time"]

1. e4 {[%clk 0:03:00.9]} 1... d5 {[%clk 0:02:59.9]} 2. Nc3 {[%clk 0:02:58.8]}
2... d4 {[%clk 0:02:56.7]} 3. Nce2 {[%clk 0:02:57.9]} 3... e5 {[%clk 0:02:56.4]}
4. d3 {[%clk 0:02:55.1]} 4... Nc6 {[%clk 0:02:45.9]} 5. g3 {[%clk 0:02:54.8]}
5... h5 {[%clk 0:02:45.1]} 6. h3 {[%clk 0:02:52.1]} 6... h4 {[%clk 0:02:34.7]}
7. g4 {[%clk 0:02:52]} 7... g5 {[%clk 0:02:35.1]} 8. Nf3 {[%clk 0:02:40.7]} 8...
f6 {[%clk 0:02:35.3]} 9. c3 {[%clk 0:02:37.9]} 9... Bc5 {[%clk 0:02:29.7]} 10.
Bg2 {[%clk 0:02:35.8]} 10... a5 {[%clk 0:02:28.2]} 11. O-O {[%clk 0:02:35.3]}
11... Nge7 {[%clk 0:02:20.3]} 12. Bd2 {[%clk 0:02:25.5]} 12... Be6 {[%clk
0:02:07.7]} 13. Qc2 {[%clk 0:02:24.5]} 13... dxc3 {[%clk 0:02:00.2]} 14. bxc3
{[%clk 0:02:17.7]} 14... Qd6 {[%clk 0:01:51.9]} 15. d4 {[%clk 0:01:54.5]} 15...
exd4 {[%clk 0:01:31.9]} 16. cxd4 {[%clk 0:01:53.9]} 16... Bxd4 {[%clk
0:01:27.2]} 17. Nexd4 {[%clk 0:01:50.9]} 17... Nxd4 {[%clk 0:01:27.5]} 18. Nxd4
{[%clk 0:01:50.3]} 18... Qxd4 {[%clk 0:01:28.4]} 19. Bc3 {[%clk 0:01:40.5]}
19... Qc5 {[%clk 0:00:53.1]} 20. Qb2 {[%clk 0:01:36.7]} 20... O-O-O {[%clk
0:00:31.7]} 21. Bxf6 {[%clk 0:01:27.5]} 21... Rhf8 {[%clk 0:00:26.2]} 22. Rac1
{[%clk 0:01:19.8]} 22... Bc4 {[%clk 0:00:06.2]} 23. Bxe7 {[%clk 0:01:04.5]}
23... Qxe7 {[%clk 0:00:07.1]} 24. Rxc4 {[%clk 0:01:03.6]} 24... Rf4 {[%clk
0:00:05.1]} 25. Rb1 {[%clk 0:00:54.9]} 25... c6 {[%clk 0:00:05.5]} 26. Qc3
{[%clk 0:00:35.7]} 26... Rdf8 {[%clk 0:00:05.5]} 27. Qxa5 {[%clk 0:00:30.7]}
27... Qc7 {[%clk 0:00:03.9]} 28. Qa8+ {[%clk 0:00:27.9]} 28... Kd7 {[%clk
0:00:03.5]} 29. Qxb7 {[%clk 0:00:27.3]} 29... Qxb7 {[%clk 0:00:02.5]} 30. Rxb7+
{[%clk 0:00:27.2]} 30... Kd6 {[%clk 0:00:03.4]} 31. Rb2 {[%clk 0:00:26]} 31...
Ra8 {[%clk 0:00:02.8]} 32. Rd2+ {[%clk 0:00:26.2]} 32... Ke5 {[%clk 0:00:02.9]}
33. Rc5+ {[%clk 0:00:24]} 33... Ke6 {[%clk 0:00:02.1]} 34. Rxc6+ {[%clk
0:00:24.4]} 34... Ke5 {[%clk 0:00:02.5]} 35. Rc5+ {[%clk 0:00:23.7]} 35... Ke6
{[%clk 0:00:02.3]} 36. Rxg5 {[%clk 0:00:22.5]} 36... Ra3 {[%clk 0:00:01.4]} 37.
Rf5 {[%clk 0:00:22.2]} 1-0

[Event "*** Titled Tuesday Blitz"]
[Site "Chess.com"]
[Date "2020.05.26"]
[Round "3"]
[White "mohamed-damaj"]
[Black "manuellarrea"]
[Result "1-0"]
[WhiteElo "2333"]
[BlackElo "2155"]
[TimeControl "180+1"]
[EndTime "10:27:45 PDT"]
[Termination "mohamed-damaj won on time"]

1. e4 {[%clk 0:03:00.9]} 1... c5 {[%clk 0:02:54.6]} 2. d4 {[%clk 0:03:00.9]}
2... cxd4 {[%clk 0:02:53.5]} 3. c3 {[%clk 0:03:01.3]} 3... Nf6 {[%clk
0:02:53.1]} 4. e5 {[%clk 0:03:00.8]} 4... Nd5 {[%clk 0:02:53]} 5. cxd4 {[%clk
0:03:01.7]} 5... e6 {[%clk 0:02:51.1]} 6. Nf3 {[%clk 0:03:01.5]} 6... d6 {[%clk
0:02:49.6]} 7. Bd3 {[%clk 0:03:01.2]} 7... Be7 {[%clk 0:02:46.7]} 8. O-O {[%clk
0:03:00.3]} 8... O-O {[%clk 0:02:46.2]} 9. Nc3 {[%clk 0:02:54.5]} 9... Nxc3
{[%clk 0:02:44.7]} 10. bxc3 {[%clk 0:02:55.4]} 10... Nc6 {[%clk 0:02:43.3]} 11.
exd6 {[%clk 0:02:39.2]} 11... Bxd6 {[%clk 0:02:41.8]} 12. Re1 {[%clk 0:02:09.6]}
12... h6 {[%clk 0:02:31]} 13. Qe2 {[%clk 0:01:54.6]} 13... Qc7 {[%clk
0:01:57.3]} 14. Ne5 {[%clk 0:01:25.6]} 14... Ne7 {[%clk 0:01:10.7]} 15. Bxh6
{[%clk 0:00:56.9]} 15... gxh6 {[%clk 0:01:06]} 16. Qg4+ {[%clk 0:00:53.7]} 16...
Kh8 {[%clk 0:01:02.5]} 17. Qh5 {[%clk 0:00:38.5]} 17... Ng8 {[%clk 0:00:54]} 18.
Re3 {[%clk 0:00:26]} 18... Bxe5 {[%clk 0:00:47.8]} 19. dxe5 {[%clk 0:00:24.3]}
19... Qxc3 {[%clk 0:00:20]} 20. Rae1 {[%clk 0:00:21.3]} 20... Qb4 {[%clk
0:00:11.9]} 21. Rb1 {[%clk 0:00:15.9]} 21... Qe7 {[%clk 0:00:10]} 22. Rg3 {[%clk
0:00:14.6]} 22... f5 {[%clk 0:00:05.1]} 23. exf6 {[%clk 0:00:13.6]} 23... Qxf6
{[%clk 0:00:04.7]} 24. Rf3 {[%clk 0:00:10.8]} 24... Qg7 {[%clk 0:00:03.6]} 25.
Rxf8 {[%clk 0:00:08.2]} 25... Qxf8 {[%clk 0:00:03.2]} 26. Re1 {[%clk 0:00:06.4]}
26... Qg7 {[%clk 0:00:02.5]} 27. Qe8 {[%clk 0:00:05.1]} 27... b6 {[%clk
0:00:01]} 28. Be4 {[%clk 0:00:04.5]} 1-0

[Event "*** Titled Tuesday Blitz"]
[Site "Chess.com"]
[Date "2020.05.26"]
[Round "3"]
[White "AndrewDGreen"]
[Black "DucksParadise"]
[Result "1-0"]
[WhiteElo "2299"]
[BlackElo "2045"]
[TimeControl "180+1"]
[EndTime "10:27:49 PDT"]
[Termination "AndrewDGreen won on time"]

1. e4 {[%clk 0:03:00.9]} 1... e6 {[%clk 0:02:58.2]} 2. Nf3 {[%clk 0:02:59.9]}
2... d5 {[%clk 0:02:57.5]} 3. Nc3 {[%clk 0:03:00.2]} 3... Nf6 {[%clk 0:02:56.6]}
4. e5 {[%clk 0:03:00.4]} 4... Nfd7 {[%clk 0:02:55.5]} 5. d4 {[%clk 0:03:00.7]}
5... c5 {[%clk 0:02:56.4]} 6. dxc5 {[%clk 0:03:01.6]} 6... Bxc5 {[%clk
0:02:55.4]} 7. Bd3 {[%clk 0:03:01.3]} 7... Nc6 {[%clk 0:02:48.6]} 8. Bf4 {[%clk
0:03:00.4]} 8... Be7 {[%clk 0:02:37.7]} 9. O-O {[%clk 0:02:54.2]} 9... a6 {[%clk
0:02:35.8]} 10. a3 {[%clk 0:02:53.6]} 10... g5 {[%clk 0:02:34.8]} 11. Bg3 {[%clk
0:02:52]} 11... h5 {[%clk 0:02:34.6]} 12. h3 {[%clk 0:02:38.3]} 12... g4 {[%clk
0:02:21.2]} 13. hxg4 {[%clk 0:02:25.1]} 13... hxg4 {[%clk 0:02:22.1]} 14. Nh2
{[%clk 0:02:24.3]} 14... Ndxe5 {[%clk 0:01:56.8]} 15. Nxg4 {[%clk 0:02:22.9]}
15... Nxd3 {[%clk 0:01:54.3]} 16. Qxd3 {[%clk 0:02:19.4]} 16... Bh4 {[%clk
0:01:55.2]} 17. Rfe1 {[%clk 0:01:56.5]} 17... Bxg3 {[%clk 0:01:19.7]} 18. Qxg3
{[%clk 0:01:57.4]} 18... Kd7 {[%clk 0:01:18.9]} 19. Nxd5 {[%clk 0:01:17.4]}
19... exd5 {[%clk 0:01:10.1]} 20. Rad1 {[%clk 0:01:09.5]} 20... Ne7 {[%clk
0:00:37.4]} 21. Ne5+ {[%clk 0:00:38.3]} 21... Ke8 {[%clk 0:00:35.8]} 22. Qg7
{[%clk 0:00:36.7]} 22... Rf8 {[%clk 0:00:34.9]} 23. c4 {[%clk 0:00:24.3]} 23...
d4 {[%clk 0:00:17.4]} 24. Nf3 {[%clk 0:00:19.9]} 24... d3 {[%clk 0:00:12.5]} 25.
Re3 {[%clk 0:00:17.9]} 25... Bf5 {[%clk 0:00:11.3]} 26. Nd4 {[%clk 0:00:12.7]}
26... Bg6 {[%clk 0:00:10.5]} 27. Rde1 {[%clk 0:00:10.1]} 27... d2 {[%clk
0:00:10.4]} 28. Rd1 {[%clk 0:00:09.6]} 28... Qd6 {[%clk 0:00:06.3]} 29. Rxd2
{[%clk 0:00:08.2]} 29... Rg8 {[%clk 0:00:05.8]} 30. Qh6 {[%clk 0:00:04.8]} 30...
Kd7 {[%clk 0:00:01.5]} 31. Nb3 {[%clk 0:00:04.7]} 31... Qxd2 {[%clk 0:00:01.4]}
32. Nxd2 {[%clk 0:00:05.6]} 1-0